fUST/lending_fUST_20250731
["ID","MTS","AMOUNT","RATE_DAILY","PERIOD"]
[376410779,1753969859050,-460.0,0.00019726,2]
[376410781,1753969859059,-460.0,0.00019726,2]
[376410782,1753969859069,-460.0,0.00019726,2]
[376410785,1753969859078,-460.0,0.00019726,2]
[376410786,1753969859088,-460.0,0.00019726,2]
[376410788,1753969859097,-460.0,0.00019726,2]
[376410790,1753969859107,-263.69273273,0.00019726,2]
[376410792,1753969859117,-460.0,0.00019726,2]
[376410794,1753969859126,-351.35243311,0.00019726,2]
[376410796,1753969859135,-4034.11388536,0.00019728,2]
[376410798,1753969859144,-200.0,0.00019773,2]
[376410800,1753969859153,-194.65109919,0.00019774,2]
[376410802,1753969859162,-389.113968,0.00019793,2]
[376410805,1753969859172,-624.0,0.00019793,2]
[376410807,1753969859181,-252.18944968,0.00019793,2]
[376410809,1753969859193,-151.0,0.000198,2]
[376410811,1753969859203,-4034.11388536,0.00019866,2]
[376410813,1753969859212,-558.90265505,0.00019883,2]
[376410815,1753969859222,-151.0,0.000199,2]
[376410817,1753969859232,-151.0,0.000199,2]
[376410819,1753969859241,-534.689918,0.00019966,2]
[376410821,1753969859251,-534.689918,0.00019966,2]
[376410823,1753969859260,-1511.72741004,0.00019968,2]
[376410825,1753969859269,-500.0,0.00019968,2]
[376410827,1753969859279,-1500.0,0.00019968,2]
[376410829,1753969859288,-1505.49605883,0.00019968,2]
[376410831,1753969859298,-500.0,0.00019973,2]
[376410833,1753969859307,-5000.0,0.0001999,2]
[376410835,1753969859317,-500.0,0.00019995,2]
[376410837,1753969859328,-388.64785306,0.00019995,2]
[376410839,1753969859337,-151.0,0.0002,2]
[376410841,1753969859347,-19659.00283333,0.0002,2]
[376410843,1753969859356,-232.812773,0.0002,2]
[376410845,1753969859366,-151.0,0.0002,2]
[376410847,1753969859374,-151.0,0.0002,2]
[376410849,1753969859383,-151.0,0.0002,2]
[376410851,1753969859393,-154.764458,0.0002,2]
[376410853,1753969859403,-151.0,0.0002,2]
[376410855,1753969859412,-151.0,0.0002,2]
[376410857,1753969859423,-151.793571,0.0002,2]
[376410859,1753969859432,-151.0,0.0002,2]
[376410861,1753969859441,-152.054893,0.0002,2]
[376410863,1753969859451,-540.215086,0.0002,2]
[376410865,1753969859460,-406.29269265,0.0002,2]
[376410867,1753969859474,-540.215086,0.0002,2]
[376410869,1753969859483,-460.0,0.0002,2]
[376410871,1753969859492,-169.196215,0.0002,2]
[376410873,1753969859502,-169.196215,0.0002,2]
[376410875,1753969859511,-151.844387,0.0002,2]
[376410877,1753969859520,-460.0,0.0002,2]
[376410879,1753969859530,-460.0,0.0002,2]
[376410881,1753969859539,-460.0,0.0002,2]
[376410883,1753969859549,-460.0,0.0002,2]
[376410885,1753969859558,-460.0,0.0002,2]
[376410887,1753969859571,-460.0,0.0002,2]
[376410889,1753969859580,-460.0,0.0002,2]
[376410891,1753969859589,-460.0,0.0002,2]
[376410893,1753969859598,-460.0,0.0002,2]
[376410895,1753969859607,-460.0,0.0002,2]
[376410897,1753969859616,-514.3,0.0002,2]
[376410899,1753969859626,-857.32,0.0002,2]
[376410900,1753969859635,-460.0,0.0002,2]
[376410902,1753969859645,-460.0,0.0002,2]
[376410904,1753969859654,-460.0,0.0002,2]
[376410907,1753969859664,-462.18853297,0.0002,2]
[376410909,1753969859673,-401.15469468,0.0002,2]
[376410911,1753969859682,-460.0,0.0002,2]
[376410913,1753969859692,-460.0,0.0002,2]
[376410915,1753969859701,-460.0,0.0002,2]
[376410917,1753969859710,-460.0,0.0002,2]
[376410919,1753969859720,-460.0,0.0002,2]
[376410921,1753969859730,-460.0,0.0002,2]
[376410923,1753969859739,-460.0,0.0002,2]
[376410924,1753969859748,-151.0,0.0002,2]
[376410926,1753969859756,-460.0,0.0002,2]
[376410928,1753969859766,-460.0,0.0002,2]
[376410931,1753969859776,-460.0,0.0002,2]
[376410932,1753969859785,-529.42,0.0002,2]
[376410934,1753969859795,-302.60309445,0.0002,2]
[376410936,1753969859804,-460.0,0.0002,2]
[376410938,1753969859814,-460.0,0.0002,2]
[376410940,1753969859823,-460.0,0.0002,2]
[376410942,1753969859832,-151.65631,0.0002,2]
[376410944,1753969859842,-151.65631,0.0002,2]
[376410946,1753969859851,-460.0,0.0002,2]
[376410948,1753969859860,-460.0,0.0002,2]
[376410950,1753969859869,-460.0,0.0002,2]
[376410952,1753969859878,-460.0,0.0002,2]
[376410954,1753969859888,-460.0,0.0002,2]
[376410956,1753969859897,-460.0,0.0002,2]
[376410958,1753969859906,-460.0,0.0002,2]
[376410960,1753969859916,-460.0,0.0002,2]
[376410962,1753969859925,-460.0,0.0002,2]
[376410964,1753969859935,-317.321756,0.0002,2]
[376410966,1753969859944,-534.689918,0.0002,2]
[376410968,1753969859953,-460.0,0.0002,2]
[376410970,1753969859962,-317.321756,0.0002,2]
[376410972,1753969859972,-460.0,0.0002,2]
[376410974,1753969859981,-534.689918,0.0002,2]
[376410976,1753969859991,-460.0,0.0002,2]
[376410978,1753969860000,-460.0,0.0002,2]
[376410980,1753969860009,-1201.739316,0.0002,2]
[376410982,1753969860019,-769.66,0.0002,2]
[376410984,1753969860029,-460.0,0.0002,2]
[376410986,1753969860038,-1201.739316,0.0002,2]
[376410988,1753969860048,-460.0,0.0002,2]
[376410990,1753969860058,-515.51,0.0002,2]
[376410993,1753969860070,-460.0,0.0002,2]
[376410995,1753969860080,-189.32144326,0.0002,2]
[376410997,1753969860089,-460.0,0.0002,2]
[376410999,1753969860098,-285.74553366,0.0002,2]
[376411001,1753969860108,-212.13292022,0.0002,2]
[376411002,1753969860117,-460.0,0.0002,2]
[376411005,1753969860127,-559.99,0.0002,2]
[376411006,1753969860136,-460.0,0.0002,2]
[376411008,1753969860145,-460.0,0.0002,2]
[376411010,1753969860155,-460.0,0.0002,2]
[376411012,1753969860164,-460.0,0.0002,2]
[376411014,1753969860173,-460.0,0.0002,2]
[376411016,1753969860182,-460.0,0.0002,2]
[376411018,1753969860192,-534.45091419,0.0002,2]
[376411019,1753969860201,-302.55561391,0.0002,2]
[376411021,1753969860211,-460.0,0.0002,2]
[376411023,1753969860220,-750.12,0.0002,2]
[376411026,1753969860230,-460.0,0.0002,2]
[376411027,1753969860240,-460.0,0.0002,2]
[376411029,1753969860250,-460.0,0.0002,2]
[376411032,1753969860261,-460.0,0.0002,2]
[376411034,1753969860271,-460.0,0.0002,2]
[376411035,1753969860280,-460.0,0.0002,2]
[376411038,1753969860290,-460.0,0.0002,2]
[376411039,1753969860300,-460.0,0.0002,2]
[376411042,1753969860309,-471.74,0.0002,2]
[376411043,1753969860320,-460.0,0.0002,2]
[376411045,1753969860330,-460.0,0.0002,2]
[376411048,1753969860340,-460.0,0.0002,2]
[376411050,1753969860350,-460.0,0.0002,2]
[376411051,1753969860360,-460.0,0.0002,2]
[376411054,1753969860370,-460.0,0.0002,2]
[376411055,1753969860379,-376.54009996,0.0002,2]
[376411057,1753969860390,-460.0,0.0002,2]
[376411059,1753969860399,-460.0,0.0002,2]
[376411061,1753969860409,-562.13,0.0002,2]
[376411063,1753969860419,-460.0,0.0002,2]
[376411066,1753969860432,-460.0,0.0002,2]
[376411067,1753969860442,-460.0,0.0002,2]
[376411069,1753969860451,-460.0,0.0002,2]
[376411071,1753969860462,-460.0,0.0002,2]
[376411073,1753969860474,-460.0,0.0002,2]
[376411075,1753969860483,-151.0,0.0002,2]
[376411077,1753969860492,-460.0,0.0002,2]
[376411079,1753969860503,-468.76333632,0.0002,2]
[376411081,1753969860513,-460.0,0.0002,2]
[376411083,1753969860523,-460.0,0.0002,2]
[376411085,1753969860532,-467.46,0.0002,2]
[376411086,1753969860542,-460.0,0.0002,2]
[376411087,1753969860551,-469.22369722,0.0002,2]
[376411088,1753969860562,-460.0,0.0002,2]
[376411089,1753969860573,-460.0,0.0002,2]
[376411090,1753969860583,-460.0,0.0002,2]
[376411091,1753969860593,-460.0,0.0002,2]
[376411092,1753969860602,-154.07665837,0.0002,2]
[376411093,1753969860611,-460.0,0.0002,2]
[376411094,1753969860620,-460.0,0.0002,2]
[376411095,1753969860630,-460.0,0.0002,2]
[376411096,1753969860640,-460.0,0.0002,2]
[376411097,1753969860649,-460.0,0.0002,2]
[376411098,1753969860659,-297.01391829,0.0002,2]
[376411099,1753969860668,-460.0,0.0002,2]
[376411100,1753969860678,-460.0,0.0002,2]
[376411101,1753969860687,-703.0,0.0002,2]
[376411102,1753969860696,-460.0,0.0002,2]
[376411103,1753969860705,-460.0,0.0002,2]
[376411104,1753969860714,-460.0,0.0002,2]
[376411105,1753969860723,-460.0,0.0002,2]
[376411107,1753969860732,-1860.96,0.0002,2]
[376411109,1753969860742,-460.0,0.0002,2]
[376411111,1753969860752,-460.0,0.0002,2]
[376411113,1753969860761,-2252.6,0.0002,2]
[376411115,1753969860771,-460.0,0.0002,2]
[376411117,1753969860780,-460.0,0.0002,2]
[376411119,1753969860789,-460.0,0.0002,2]
[376411121,1753969860799,-460.0,0.0002,2]
[376411123,1753969860809,-460.0,0.0002,2]
[376411126,1753969860823,-464.44295693,0.0002,2]
[376411128,1753969860832,-460.0,0.0002,2]
[376411130,1753969860843,-460.0,0.0002,2]
[376411132,1753969860853,-466.27394536,0.0002,2]
[376411134,1753969860862,-460.0,0.0002,2]
[376411146,1753969860961,-460.0,0.0002,2]
[376411148,1753969860981,-573.18,0.0002,2]
[376411150,1753969860991,-460.0,0.0002,2]
[376411152,1753969861001,-460.0,0.0002,2]
[376411154,1753969861010,-460.0,0.0002,2]
[376411156,1753969861019,-460.0,0.0002,2]
[376411158,1753969861029,-460.0,0.0002,2]
[376411160,1753969861039,-560.1,0.0002,2]
[376411162,1753969861048,-261.760103,0.0002,2]
[376411164,1753969861058,-460.0,0.0002,2]
[376411167,1753969861071,-729.28,0.0002,2]
[376411168,1753969861081,-460.0,0.0002,2]
[376411171,1753969861091,-2235.17,0.0002,2]
[376411173,1753969861100,-460.0,0.0002,2]
[376411175,1753969861110,-261.760103,0.0002,2]
[376411176,1753969861119,-460.0,0.0002,2]
[376411178,1753969861129,-226.880338,0.0002,2]
[376411180,1753969861138,-460.0,0.0002,2]
[376411182,1753969861148,-460.0,0.0002,2]
[376411184,1753969861158,-460.0,0.0002,2]
[376411186,1753969861167,-410.66905813,0.0002,2]
[376411188,1753969861176,-226.880338,0.0002,2]
[376411191,1753969861185,-460.0,0.0002,2]
[376411193,1753969861194,-506.13232367,0.0002,2]
[376411195,1753969861203,-460.0,0.0002,2]
[376411197,1753969861212,-512.67662054,0.0002,2]
[376411199,1753969861222,-460.0,0.0002,2]
[376411200,1753969861231,-460.0,0.0002,2]
[376411202,1753969861240,-460.0,0.0002,2]
[376411204,1753969861249,-460.0,0.0002,2]
[376411206,1753969861259,-460.0,0.0002,2]
[376411208,1753969861268,-460.0,0.0002,2]
[376411211,1753969861278,-460.0,0.0002,2]
[376411212,1753969861287,-1658.01,0.0002,2]
[376411214,1753969861296,-460.0,0.0002,2]
[376411216,1753969861306,-460.0,0.0002,2]
[376411219,1753969861317,-527.57354801,0.0002,2]
[376411221,1753969861326,-460.0,0.0002,2]
[376411223,1753969861335,-460.0,0.0002,2]
[376411225,1753969861346,-460.0,0.0002,2]
[376411227,1753969861355,-460.0,0.0002,2]
[376411229,1753969861365,-460.0,0.0002,2]
[376411230,1753969861375,-460.0,0.0002,2]
[376411232,1753969861384,-464.17303138,0.0002,2]
[376411234,1753969861394,-520.89,0.0002,2]
[376411236,1753969861405,-460.0,0.0002,2]
[376411239,1753969861414,-460.0,0.0002,2]
[376411240,1753969861424,-619.09,0.0002,2]
[376411242,1753969861433,-460.0,0.0002,2]
[376411244,1753969861442,-1314.43,0.0002,2]
[376411246,1753969861452,-460.0,0.0002,2]
[376411249,1753969861461,-460.0,0.0002,2]
[376411251,1753969861470,-460.0,0.0002,2]
[376411253,1753969861481,-460.0,0.0002,2]
[376411254,1753969861493,-152.987253,0.0002,2]
[376411256,1753969861502,-267.230596,0.0002,2]
[376411258,1753969861511,-460.0,0.0002,2]
[376411260,1753969861520,-463.22526367,0.0002,2]
[376411262,1753969861531,-638.87,0.0002,2]
[376411264,1753969861540,-546.71,0.0002,2]
[376411266,1753969861549,-4442.7,0.0002,2]
[376411268,1753969861559,-267.230596,0.0002,2]
[376411271,1753969861569,-460.0,0.0002,2]
[376411273,1753969861578,-460.0,0.0002,2]
[376411275,1753969861587,-460.0,0.0002,2]
[376411276,1753969861596,-460.0,0.0002,2]
[376411279,1753969861607,-506.83,0.0002,2]
[376411281,1753969861616,-460.0,0.0002,2]
[376411283,1753969861625,-734.47,0.0002,2]
[376411284,1753969861634,-460.0,0.0002,2]
[376411287,1753969861643,-460.0,0.0002,2]
[376411289,1753969861653,-575.86,0.0002,2]
[376411291,1753969861663,-592.96,0.0002,2]
[376411292,1753969861671,-460.0,0.0002,2]
[376411294,1753969861681,-460.0,0.0002,2]
[376411297,1753969861691,-460.0,0.0002,2]
[376411298,1753969861700,-460.0,0.0002,2]
[376411300,1753969861710,-460.0,0.0002,2]
[376411302,1753969861719,-460.0,0.0002,2]
[376411304,1753969861727,-460.0,0.0002,2]
[376411306,1753969861736,-460.0,0.0002,2]
[376411308,1753969861746,-460.0,0.0002,2]
[376411311,1753969861755,-736.43,0.0002,2]
[376411313,1753969861764,-460.0,0.0002,2]
[376411315,1753969861774,-460.0,0.0002,2]
[376411316,1753969861783,-151.0,0.0002,2]
[376411318,1753969861792,-460.0,0.0002,2]
[376411321,1753969861802,-460.0,0.0002,2]
[376411323,1753969861811,-460.0,0.0002,2]
[376411325,1753969861822,-466.97874428,0.0002,2]
[376411327,1753969861831,-460.0,0.0002,2]
[376411328,1753969861840,-460.0,0.0002,2]
[376411331,1753969861849,-2742.6,0.0002,2]
[376411332,1753969861859,-460.0,0.0002,2]
[376411334,1753969861868,-460.0,0.0002,2]
[376411337,1753969861877,-460.0,0.0002,2]
[376411339,1753969861887,-460.0,0.0002,2]
[376411341,1753969861896,-403.66606769,0.0002,2]
[376411369,1753969862153,-56.33393231,0.0002,2]
[376411371,1753969862164,-460.0,0.0002,2]
[376411373,1753969862173,-460.0,0.0002,2]
[376411375,1753969862183,-460.0,0.0002,2]
[376411376,1753969862192,-460.0,0.0002,2]
[376411377,1753969862202,-577.49,0.0002,2]
[376411378,1753969862211,-460.0,0.0002,2]
[376411379,1753969862220,-460.0,0.0002,2]
[376411380,1753969862230,-460.0,0.0002,2]
[376411381,1753969862239,-3132.05,0.0002,2]
[376411383,1753969862248,-1043.01,0.0002,2]
[376411384,1753969862258,-643.84,0.0002,2]
[376411385,1753969862267,-466.23414978,0.0002,2]
[376411386,1753969862277,-460.0,0.0002,2]
[376411387,1753969862286,-480.68276304,0.0002,2]
[376411388,1753969862296,-872.3215349,0.0002,2]
[376411389,1753969862513,-485.55,0.00019178,2]
[376411390,1753969862524,-1193.44,0.00019178,2]
[376411391,1753969862533,-460.0,0.00019178,2]
[376411392,1753969862542,-485.55,0.00019452,2]
[376411393,1753969862551,-460.0,0.00019452,2]
[376411394,1753969862560,-1687.3984651,0.0002,2]
[376411395,1753969862570,-460.0,0.0002,2]
[376411396,1753969862579,-460.0,0.0002,2]
[376411397,1753969862588,-566.95,0.0002,2]
[376411398,1753969862598,-11.83002463,0.0002,2]
[376411399,1753969862610,-564.04997537,0.0002,2]
[376411400,1753969862620,-460.0,0.0002,2]
[376411401,1753969862732,-21.31512874,0.0002,2]
[376411402,1753969862746,-438.68487126,0.0002,2]
[376411403,1753969862755,-676.73,0.0002,2]
[376411404,1753969862764,-305.76559144,0.0002,2]
[376411405,1753969862781,-485.55,0.00019726,2]
[376411406,1753969862791,-154.23440856,0.0002,2]
[376411407,1753969862800,-460.0,0.0002,2]
[376411408,1753969862810,-460.0,0.0002,2]
[376411409,1753969862820,-448.41398148,0.0002,2]
[376411410,1753969863036,-637.56813429,0.00019178,2]
[376411411,1753969863048,-555.87186571,0.00019178,2]
[376411413,1753969863057,-1193.44,0.00019178,2]
[376411415,1753969863068,-1193.44,0.00019178,2]
[376411417,1753969863078,-1193.44,0.00019178,2]
[376411419,1753969863087,-1193.44,0.00019178,2]
[376411421,1753969863097,-1193.44,0.00019178,2]
[376411423,1753969863107,-460.0,0.00019726,2]
[376411425,1753969863117,-11.58601852,0.0002,2]
[376411426,1753969863126,-460.0,0.0002,2]
[376411427,1753969863136,-151.0,0.0002,2]
[376411428,1753969863148,-779.78815785,0.0002,2]
[376411431,1753969863164,-777.17506577,0.0002,2]
[376411434,1753969863180,-1193.44,0.00019178,2]
[376411436,1753969863190,-792.08677638,0.0002,2]
[376411438,1753969863200,-519.76,0.0002,2]
[376411440,1753969863210,-496.53,0.0002,2]
[376411442,1753969863220,-460.0,0.0002,2]
[376411443,1753969863230,-460.0,0.0002,2]
[376411444,1753969863240,-460.0,0.0002,2]
[376411445,1753969863249,-460.0,0.0002,2]
[376411447,1753969863258,-460.0,0.0002,2]
[376411448,1753969863269,-2419.35,0.0002,2]
[376411449,1753969863278,-460.0,0.0002,2]
[376411451,1753969863288,-460.0,0.0002,2]
[376411453,1753969863298,-273.68725549,0.0002,2]
[376411455,1753969863308,-460.0,0.0002,2]
[376411457,1753969863319,-460.0,0.0002,2]
[376411459,1753969863329,-460.0,0.0002,2]
[376411460,1753969863339,-460.0,0.0002,2]
[376411461,1753969863349,-460.0,0.0002,2]
[376411462,1753969863358,-579.82,0.0002,2]
[376411463,1753969863368,-639.16,0.0002,2]
[376411464,1753969863378,-1735.36,0.0002,2]
[376411465,1753969863387,-718.6,0.0002,2]
[376411466,1753969863396,-460.0,0.0002,2]
[376411467,1753969863406,-460.0,0.0002,2]
[376411468,1753969863415,-460.0,0.0002,2]
[376411469,1753969863425,-460.0,0.0002,2]
[376411470,1753969863435,-460.0,0.0002,2]
[376411471,1753969863444,-151.0,0.0002,2]
[376411472,1753969863453,-5759.56,0.0002,2]
[376411473,1753969863463,-460.0,0.0002,2]
[376411474,1753969863472,-460.0,0.0002,2]
[376411475,1753969863484,-460.0,0.0002,2]
[376411477,1753969863496,-460.0,0.0002,2]
[376411479,1753969863505,-460.0,0.0002,2]
[376411481,1753969863514,-807.53,0.0002,2]
[376411482,1753969863525,-460.0,0.0002,2]
[376411483,1753969863534,-2073.69,0.0002,2]
[376411484,1753969863543,-460.0,0.0002,2]
[376411485,1753969863554,-460.0,0.0002,2]
[376411486,1753969863564,-460.0,0.0002,2]
[376411487,1753969863574,-460.0,0.0002,2]
[376411488,1753969863584,-460.0,0.0002,2]
[376411489,1753969863594,-557.31513292,0.0002,2]
[376411490,1753969863603,-881.71,0.0002,2]
[376411491,1753969863613,-460.0,0.0002,2]
[376411492,1753969863623,-460.0,0.0002,2]
[376411493,1753969863632,-422.319448,0.0002,2]
[376411494,1753969863642,-460.0,0.0002,2]
[376411495,1753969863651,-698.71,0.0002,2]
[376411496,1753969863661,-696.73,0.0002,2]
[376411497,1753969863670,-460.0,0.0002,2]
[376411498,1753969863679,-4000.0,0.0002,4]
[376411499,1753969863689,-422.319448,0.0002,2]
[376411501,1753969863698,-460.0,0.0002,2]
[376411503,1753969863708,-460.0,0.0002,2]
[376411504,1753969863718,-460.0,0.0002,2]
[376411506,1753969863728,-628.56,0.0002,2]
[376411507,1753969863738,-460.0,0.0002,2]
[376411509,1753969863747,-460.0,0.0002,2]
[376411511,1753969863756,-460.0,0.0002,2]
[376411512,1753969863766,-1237.99,0.0002,2]
[376411514,1753969863776,-460.0,0.0002,2]
[376411515,1753969863786,-4853.9,0.0002,2]
[376411516,1753969863795,-460.0,0.0002,2]
[376411517,1753969863804,-460.0,0.0002,2]
[376411518,1753969863814,-460.0,0.0002,2]
[376411519,1753969863824,-917.19,0.0002,2]
[376411520,1753969863833,-460.0,0.0002,2]
[376411521,1753969863843,-460.0,0.0002,2]
[376411522,1753969863852,-460.0,0.0002,2]
[376411523,1753969863862,-460.0,0.0002,2]
[376411524,1753969863872,-460.0,0.0002,2]
[376411525,1753969863881,-460.0,0.0002,2]
[376411526,1753969863891,-460.0,0.0002,2]
[376411527,1753969863900,-460.0,0.0002,2]
[376411528,1753969863909,-485.55,0.0002,2]
[376411529,1753969863919,-460.0,0.0002,2]
[376411530,1753969863928,-4034.11388536,0.00020003,2]
[376411531,1753969863937,-500.0,0.00020021,2]
[376411532,1753969863947,-800.0,0.0002003,2]
[376411533,1753969863956,-624.0,0.00020067,2]
[376411534,1753969863966,-925.8244868,0.00020068,2]
[376411535,1753969863977,-4034.11388536,0.00020141,2]
[376411536,1753969863986,-12642.0599901,0.00020167,2]
[376411537,1753969863996,-160.0,0.00020168,2]
[376411538,1753969864006,-841.37753757,0.00020168,2]
[376411539,1753969864016,-160.0,0.00020168,2]
[376411540,1753969864025,-231.48161788,0.00020168,2]
[376411541,1753969864035,-526.848153,0.00020168,2]
[376411560,1753969864251,-160.0,0.00020168,2]
[376411562,1753969864261,-160.0,0.00020168,2]
[376411564,1753969864270,-214.99831783,0.00020168,2]
[376411566,1753969864280,-160.0,0.00020168,2]
[376411568,1753969864289,-160.0,0.00020168,2]
[376411570,1753969864298,-216.18812866,0.00020168,2]
[376411572,1753969864308,-800.0,0.0002018,2]
[376411574,1753969864321,-345.537187,0.00020187,2]
[376411576,1753969864331,-600.0,0.000202,3]
[376411578,1753969864340,-1009.46,0.00020232,3]
[376411580,1753969864350,-504.72,0.00020232,3]
[376411582,1753969864359,-500.0,0.00020242,2]
[376411584,1753969864368,-1500.0,0.00020268,2]
[376411586,1753969864377,-1500.0,0.00020268,2]
[376411588,1753969864387,-506.63006428,0.00020268,2]
[376411590,1753969864396,-1500.0,0.00020268,2]
[376411592,1753969864406,-1800.0,0.00020268,2]
[376411594,1753969864416,-1500.0,0.00020268,2]
[376411596,1753969864425,-343.95660498,0.00020269,2]
[376411598,1753969864434,-151.0,0.00020273,2]
[376411600,1753969864444,-151.0,0.00020273,2]
[376411602,1753969864453,-151.0,0.00020273,2]
[376411604,1753969864463,-151.0,0.00020273,2]
[376411606,1753969864472,-449.725981,0.00020273,2]
[376411608,1753969864484,-449.725981,0.00020273,2]
[376411610,1753969864495,-151.0,0.00020273,2]
[376411612,1753969864505,-840.122079,0.00020273,2]
[376411614,1753969864514,-840.122079,0.00020273,2]
[376411616,1753969864524,-151.0,0.00020273,2]
[376411618,1753969864533,-181.444036,0.00020273,2]
[376411620,1753969864542,-151.0,0.00020273,2]
[376411622,1753969864552,-151.0,0.00020273,2]
[376411624,1753969864561,-152.135167,0.00020273,2]
[376411626,1753969864574,-151.0,0.00020273,2]
[376411628,1753969864583,-540.215086,0.00020273,2]
[376411630,1753969864592,-540.215086,0.00020273,2]
[376411632,1753969864603,-460.0,0.00020273,2]
[376411634,1753969864613,-773.9902786,0.00020273,2]
[376411636,1753969864622,-3092.8651533,0.00020273,2]
[376411638,1753969864632,-169.196215,0.00020273,2]
[376411640,1753969864642,-169.196215,0.00020273,2]
[376411642,1753969864651,-460.0,0.00020273,2]
[376411644,1753969864661,-460.0,0.00020273,2]
[376411657,1753969864774,-460.0,0.00020273,2]
[376411659,1753969864785,-460.0,0.00020273,2]
[376411661,1753969864794,-465.03238221,0.00020273,2]
[376411663,1753969864805,-590.96518054,0.00020273,2]
[376411665,1753969864817,-2361.49686142,0.00020273,2]
[376411667,1753969864827,-389.64800467,0.00020273,2]
[376411669,1753969864836,-460.0,0.00020273,2]
[376411671,1753969864846,-460.0,0.00020273,2]
[376411673,1753969864855,-460.0,0.00020273,2]
[376411675,1753969864865,-460.0,0.00020273,2]
[376411677,1753969864874,-514.3,0.00020273,2]
[376411679,1753969864884,-460.0,0.00020273,2]
[376411681,1753969864894,-460.0,0.00020273,2]
[376411683,1753969864903,-460.0,0.00020273,2]
[376411685,1753969864912,-460.0,0.00020273,2]
[376411688,1753969864922,-464.86746981,0.00020273,2]
[376411690,1753969864931,-242.03143647,0.00020273,2]
[376411692,1753969864941,-460.0,0.00020273,2]
[376411693,1753969864951,-460.0,0.00020273,2]
[376411695,1753969864960,-460.0,0.00020273,2]
[376411697,1753969864970,-460.0,0.00020273,2]
[376411699,1753969864980,-151.0,0.00020273,2]
[376411701,1753969864990,-460.0,0.00020273,2]
[376411703,1753969865000,-464.18903839,0.00020273,2]
[376411705,1753969865011,-460.0,0.00020273,2]
[376411707,1753969865021,-529.42,0.00020273,2]
[376411710,1753969865031,-1500.0,0.00020273,7]
[376411712,1753969865040,-1500.0,0.00020273,7]
[376411713,1753969865049,-1500.0,0.00020273,7]
[376411715,1753969865059,-1500.0,0.00020273,7]
[376411717,1753969865073,-1500.0,0.00020273,7]